bitfinex/quotes_BTCUSD_20250303
["timestamp","ask_amount","ask_price","bid_price","bid_amount"]
[1741040534580,0.10269517,86635.0,86629.0,0.230867]
[1741040534775,0.10269517,86635.0,86631.0,0.230862]
[1741040535080,0.10269517,86635.0,86629.0,0.230867]
[1741040535312,0.10269517,86635.0,86634.0,0.230856]
[1741040535646,0.10269517,86635.0,86620.0,0.5403]
[1741040535821,0.10269517,86635.0,86629.0,0.230869]
[1741040536230,0.10269517,86635.0,86620.0,0.5403]
[1741040536549,0.230827,86645.0,86627.0,0.230873]
[1741040536726,0.230833,86643.0,86628.0,0.23248481]
[1741040536925,0.230833,86643.0,86627.0,0.230873]
[1741040537126,0.230827,86645.0,86628.0,0.00161582]
[1741040537307,0.0001697,86656.0,86628.0,0.00161582]
[1741040537529,0.00056478,86656.0,86628.0,0.00161582]
[1741040537713,0.230814,86650.0,86634.0,0.230854]
[1741040538078,0.2308,86655.0,86639.0,0.230841]
[1741040538192,0.00056478,86656.0,86635.0,0.00161573]
[1741040538193,0.230808,86653.0,86640.0,0.09644]
[1741040538398,0.23081,86652.0,86640.0,0.09644]
[1741040538606,0.00056478,86656.0,86640.0,0.09644]
[1741040538814,0.230818,86649.0,86640.0,0.09644]
[1741040539014,0.230805,86653.0,86640.0,0.09644]
[1741040539252,0.230821,86648.0,86640.0,0.09644]
[1741040539671,0.00056478,86656.0,86640.0,0.09644]
[1741040539985,0.230827,86645.0,86640.0,0.09644]
[1741040540187,0.23083,86644.0,86640.0,0.09644]
[1741040540890,0.00056478,86656.0,86640.0,0.09644]
[1741040540891,0.230837,86641.0,86640.0,0.09644]
[1741040541311,0.230802,86654.0,86640.0,0.09944]
[1741040541533,0.230833,86643.0,86640.0,0.09944]
[1741040541854,0.230829,86644.0,86640.0,0.09644]
[1741040542252,0.23082,86648.0,86640.0,0.09644]
[1741040542458,0.00056478,86656.0,86640.0,0.09644]
[1741040542655,0.00056478,86656.0,86646.0,0.230822]
[1741040542819,0.00056478,86656.0,86648.0,0.230817]
[1741040543021,0.00056478,86656.0,86646.0,0.230822]
[1741040543022,0.00056478,86656.0,86643.0,0.3215]
[1741040543219,0.00056478,86656.0,86644.0,0.00161554]
[1741040543428,0.00056478,86656.0,86655.0,0.24534085]
[1741040543800,0.00056478,86656.0,86655.0,0.56684085]
[1741040544227,0.01865761,86656.0,86655.0,0.56684085]
[1741040546057,0.00056478,86656.0,86655.0,0.56684085]
[1741040546589,0.00056478,86656.0,86655.0,0.57384085]
[1741040546790,0.00056478,86656.0,86655.0,0.3215]
[1741040547169,0.00056478,86656.0,86655.0,0.3285]
[1741040547807,0.00056478,86656.0,86655.0,0.3215]
[1741040548020,0.00056478,86656.0,86655.0,0.3285]
[1741040549345,0.00056478,86656.0,86642.0,0.3215]
[1741040549507,0.00056478,86656.0,86655.0,0.007]
[1741040550135,0.00056478,86656.0,86655.0,0.56091519]
[1741040550337,0.00056478,86656.0,86655.0,0.5523]
[1741040550540,0.01865671,86656.0,86655.0,0.3215]
[1741040550742,0.00056478,86656.0,86655.0,0.3215]
[1741040552534,0.00056478,86656.0,86655.0,0.3285]
[1741040553085,0.00056478,86656.0,86655.0,0.3215]
[1741040553450,0.00056478,86656.0,86655.0,0.3285]
[1741040553664,0.01865798,86656.0,86655.0,0.3285]
[1741040554270,0.01865798,86656.0,86655.0,0.5593]
[1741040555094,0.00056478,86656.0,86655.0,0.5593]
[1741040556559,0.00056478,86656.0,86655.0,0.57384085]
[1741040557129,0.00056478,86656.0,86655.0,0.97384085]
[1741040557913,0.00056478,86656.0,86655.0,1.51414085]
[1741040559244,0.00056478,86656.0,86655.0,1.50714085]
[1741040559666,0.00056478,86656.0,86655.0,1.51414085]
[1741040559889,0.00056478,86656.0,86655.0,1.41414085]
[1741040560077,0.00056478,86656.0,86655.0,1.51414085]
[1741040561913,0.00056478,86656.0,86655.0,1.41414085]
[1741040563414,0.00056478,86656.0,86655.0,1.3996]
[1741040563615,0.230725,86683.0,86655.0,0.8688]
[1741040563856,0.230741,86678.0,86665.0,0.230771]
[1741040564121,0.00011852,86683.0,86674.0,0.230749]
[1741040564416,0.00011852,86683.0,86672.0,0.230752]
[1741040564796,0.00011852,86683.0,86673.0,0.00161512]
[1741040565116,0.00011852,86683.0,86682.0,0.230728]
[1741040565920,0.00011852,86683.0,86682.0,0.24526885]
[1741040567110,0.00011852,86683.0,86682.0,0.25226885]
[1741040567531,0.00011852,86683.0,86682.0,0.56676885]
[1741040567940,0.00011852,86683.0,86682.0,0.57376885]
[1741040568690,0.01820364,86683.0,86682.0,0.57376885]
[1741040569417,0.01820364,86683.0,86682.0,0.56676885]
[1741040569615,0.01820364,86683.0,86682.0,0.3285]
[1741040569815,0.01820364,86683.0,86682.0,0.42462]
[1741040570046,0.01820364,86683.0,86682.0,0.655348]
[1741040570314,0.01820364,86683.0,86682.0,0.41762]
[1741040570512,0.01820364,86683.0,86682.0,0.007]
[1741040570727,0.29552864,86683.0,86682.0,0.007]
[1741040570917,0.29552864,86683.0,86682.0,0.0003392]
[1741040571417,0.29569824,86683.0,86682.0,0.0003392]
[1741040572496,0.29569824,86683.0,86682.0,0.0073392]
[1741040572741,0.59569824,86683.0,86682.0,0.007]
[1741040572942,0.230789,86659.0,86638.0,0.3215]
[1741040573147,0.230789,86659.0,86643.0,0.09608]
[1741040573462,0.230815,86650.0,86643.0,0.09608]
[1741040573667,0.230829,86644.0,86643.0,0.09608]
[1741040573896,0.01809271,86656.0,86643.0,0.09608]
[1741040574067,0.230818,86648.0,86647.0,0.007]
[1741040574654,0.230818,86648.0,86647.0,0.00739508]
[1741040575030,0.23081,86651.0,86647.0,0.00739508]
[1741040575234,0.230817,86649.0,86647.0,0.00739508]
[1741040575452,0.230818,86648.0,86647.0,0.00739508]
[1741040575898,0.230818,86648.0,86647.0,0.00039508]
[1741040576085,0.230808,86652.0,86647.0,0.00039508]
[1741040576276,0.05604765,86648.0,86647.0,0.00039508]
[1741040576683,0.05604765,86648.0,86647.0,0.23121608]
[1741040576821,0.05604765,86648.0,86647.0,0.56725693]
[1741040577031,0.05604765,86648.0,86647.0,1.69325693]
[1741040577226,0.05604765,86648.0,86647.0,1.73905693]
[1741040577454,0.05604765,86648.0,86647.0,1.73205693]
[1741040577879,0.05604765,86648.0,86647.0,1.73905693]
[1741040578095,0.02155679,86648.0,86647.0,1.73905693]
[1741040578472,0.02015892,86648.0,86647.0,1.73905693]
[1741040578880,9.2e-07,86648.0,86647.0,1.73905693]
[1741040579301,9.2e-07,86648.0,86647.0,1.73205693]
[1741040579493,0.00100092,86648.0,86647.0,1.73905693]
[1741040579696,9.2e-07,86648.0,86647.0,1.73905693]
[1741040580550,9.2e-07,86648.0,86647.0,1.77504218]
[1741040580909,9.2e-07,86648.0,86647.0,1.73905693]
[1741040581451,9.2e-07,86648.0,86647.0,1.53905693]
[1741040581702,9.2e-07,86648.0,86647.0,0.55971608]
[1741040581884,9.2e-07,86648.0,86647.0,0.65575608]
[1741040582295,9.2e-07,86648.0,86647.0,0.32889508]
[1741040582623,0.23081892,86648.0,86647.0,0.00739508]
[1741040583438,0.23081892,86648.0,86647.0,0.00773428]
[1741040583638,0.54891397,86648.0,86647.0,0.00073428]
[1741040583853,0.54891397,86648.0,86647.0,0.00773428]
[1741040584061,0.59771397,86648.0,86647.0,0.00773428]
[1741040584275,0.61299958,86648.0,86647.0,0.00773428]
[1741040584485,0.59771397,86648.0,86647.0,0.00773428]
[1741040585152,0.579618,86648.0,86647.0,0.00773428]
[1741040585507,0.579618,86648.0,86647.0,0.00073428]
[1741040585950,0.579618,86648.0,86647.0,0.00473428]
[1741040586150,0.0488,86663.0,86647.0,0.23555528]
[1741040586374,0.279579,86663.0,86647.0,0.00473428]
[1741040586601,0.279579,86663.0,86653.0,0.230803]
[1741040586602,0.0488,86663.0,86653.0,0.230803]
[1741040586803,0.230764,86669.0,86659.0,0.230788]
[1741040587093,0.1315,86680.0,86647.0,0.00073428]
[1741040587236,0.1315,86680.0,86664.0,0.229775]
[1741040587436,0.1315,86680.0,86665.0,0.00161518]
[1741040587735,0.230737,86679.0,86665.0,0.23238618]
[1741040587989,0.230737,86679.0,86670.0,0.23076]
[1741040588161,0.230745,86676.0,86655.0,0.3215]
[1741040588361,0.230739,86678.0,86669.0,0.230762]
[1741040588657,0.230736,86680.0,86655.0,0.3215]
[1741040588887,0.10269517,86685.0,86656.0,0.00161518]
[1741040589037,0.10269517,86685.0,86659.0,0.001]
[1741040589256,0.10269517,86685.0,86682.0,0.230728]
[1741040589447,0.0001698,86687.0,86682.0,0.230728]
[1741040590427,0.00028812,86683.0,86682.0,0.230728]
[1741040590827,0.00028812,86683.0,86682.0,0.57376885]
[1741040591254,0.230639,86716.0,86683.0,0.01454085]
[1741040591459,0.230667,86706.0,86695.0,0.230692]
[1741040591696,0.230669,86705.0,86695.0,0.230692]
[1741040591870,0.230653,86710.0,86686.0,0.01454085]
[1741040592206,0.230653,86710.0,86695.0,0.230693]
[1741040592396,0.230677,86702.0,86691.0,0.230702]
[1741040592728,0.00528823,86711.0,86688.0,0.23071]
[1741040592924,0.230667,86706.0,86689.0,0.32311466]
[1741040593127,0.230669,86705.0,86694.0,0.230695]
[1741040593328,0.00528823,86711.0,86689.0,0.3215]
[1741040593526,0.3,86736.0,86690.0,0.00161457]
[1741040593734,0.230679,86701.0,86690.0,0.23082343]
[1741040593905,0.230684,86699.0,86690.0,0.23082343]
[1741040594110,0.230679,86701.0,86691.0,0.230703]
[1741040594310,0.230682,86700.0,86690.0,0.00011843]
[1741040594515,0.230682,86700.0,86691.0,0.230703]
[1741040594723,0.230682,86700.0,86690.0,0.23082443]
[1741040594876,0.230682,86700.0,86692.0,0.230699]
[1741040595081,0.230673,86703.0,86690.0,0.00011843]
[1741040595301,0.230679,86701.0,86690.0,0.00011843]
[1741040595639,0.230679,86701.0,86692.0,0.230699]
[1741040595840,0.0001697,86706.0,86690.0,0.00011843]
[1741040596141,0.230679,86701.0,86690.0,0.00211843]
[1741040596283,0.230669,86704.0,86690.0,0.00211843]
[1741040596484,0.230689,86697.0,86690.0,0.00011843]
[1741040596685,0.230695,86695.0,86692.0,0.007]
[1741040597431,0.230689,86697.0,86690.0,0.00011843]
[1741040597634,0.230689,86697.0,86690.0,0.00711843]
[1741040597830,0.230674,86703.0,86691.0,0.230703]
[1741040598042,0.230669,86704.0,86692.0,0.00161482]
[1741040598239,0.0001697,86706.0,86700.0,0.23068]
[1741040598415,0.230673,86703.0,86690.0,0.00711843]
[1741040598614,0.230679,86701.0,86693.0,0.230697]
[1741040599010,0.23068,86700.0,86693.0,0.230697]
[1741040599207,0.230667,86705.0,86690.0,0.00711843]
[1741040599418,0.230688,86698.0,86690.0,0.00011843]
[1741040599611,0.230688,86698.0,86692.0,0.007]
[1741040599865,0.230687,86698.0,86692.0,0.007]
[1741040600018,0.2308337,86706.0,86692.0,0.007]
[1741040600236,0.230675,86703.0,86690.0,0.00011843]
[1741040600462,0.2308337,86706.0,86696.0,0.230689]
[1741040600660,0.0001697,86706.0,86690.0,0.00611843]
[1741040600838,0.0001697,86706.0,86701.0,0.230675]
[1741040601036,0.0001697,86706.0,86700.0,0.23068]
[1741040601576,0.0001697,86706.0,86698.0,0.230685]
[1741040601928,0.0001697,86706.0,86700.0,0.230679]
[1741040602229,0.2308357,86706.0,86698.0,0.230685]
[1741040602445,0.230667,86705.0,86696.0,0.23069]
[1741040602631,0.0001697,86706.0,86699.0,0.230681]
[1741040602831,0.0001697,86706.0,86700.0,0.007]
[1741040603037,0.23067,86704.0,86700.0,0.007]
[1741040603233,0.0001697,86706.0,86700.0,0.007]
[1741040603583,0.230671,86704.0,86697.0,0.230687]
[1741040603806,0.230671,86704.0,86697.0,0.224687]
[1741040604009,0.0001697,86706.0,86696.0,0.007]
[1741040604227,0.0001697,86706.0,86700.0,0.230678]
[1741040604859,0.2308337,86706.0,86698.0,0.230683]
[1741040605008,0.0001697,86706.0,86700.0,0.23768]
[1741040605215,0.0001697,86706.0,86700.0,0.007]
[1741040605414,0.230676,86702.0,86700.0,0.007]
[1741040605961,0.230677,86701.0,86700.0,0.007]
[1741040606496,0.230676,86702.0,86691.0,0.3215]
[1741040606696,0.0001697,86706.0,86691.0,0.3215]
[1741040606926,0.230683,86699.0,86691.0,0.3215]
[1741040607236,0.230692,86696.0,86691.0,0.3215]
[1741040607448,0.230699,86694.0,86691.0,0.3215]
[1741040607617,0.230701,86692.0,86691.0,0.3285]
[1741040607838,0.230695,86695.0,86691.0,0.3285]
[1741040608041,0.230701,86692.0,86691.0,0.3215]
[1741040608245,0.0001697,86706.0,86691.0,0.3215]
[1741040608569,0.23069,86697.0,86691.0,0.3215]
[1741040608870,0.0001697,86706.0,86691.0,0.3215]
[1741040608871,0.230701,86692.0,86691.0,0.3215]
[1741040609631,0.230701,86692.0,86691.0,0.3285]
[1741040610178,0.230701,86692.0,86691.0,0.3215]
[1741040610411,0.2307,86693.0,86691.0,0.3215]
[1741040610620,0.230701,86692.0,86691.0,0.3285]
[1741040610820,0.0799697,86706.0,86691.0,0.3285]
[1741040611028,0.230701,86692.0,86691.0,0.3285]
[1741040611227,0.230701,86692.0,86691.0,0.3215]
[1741040611553,0.230701,86692.0,86691.0,0.3285]
[1741040612980,0.230691,86696.0,86691.0,0.3285]
[1741040613178,0.2307,86693.0,86691.0,0.3285]
[1741040613453,0.0001697,86706.0,86691.0,0.3215]
[1741040613645,0.230701,86692.0,86691.0,0.3215]
[1741040614052,0.0001697,86706.0,86705.0,0.230667]
[1741040614258,0.0001697,86706.0,86705.0,0.24520785]
[1741040614472,0.0001697,86706.0,86705.0,0.326467]
[1741040614853,0.0001697,86706.0,86699.0,0.0958]
[1741040615057,0.0001697,86706.0,86705.0,0.230667]
[1741040617530,0.0001697,86706.0,86705.0,0.237667]
[1741040618034,0.0001697,86706.0,86705.0,0.230667]
[1741040618237,0.0001697,86706.0,86705.0,0.237667]
[1741040620310,0.0001697,86706.0,86705.0,0.25220785]
[1741040625875,0.0001697,86706.0,86705.0,0.65420785]
[1741040626204,0.0001697,86706.0,86705.0,0.95420785]
[1741040627043,0.0001697,86706.0,86705.0,0.87370785]
[1741040627192,0.0001697,86706.0,86705.0,0.559167]
[1741040628968,0.0001697,86706.0,86705.0,0.57370785]
[1741040629976,0.0001697,86706.0,86705.0,0.559167]
[1741040635669,0.0001697,86706.0,86705.0,0.57370785]
[1741040636151,0.0001697,86706.0,86705.0,0.559167]
[1741040636338,0.0001697,86706.0,86705.0,0.57370785]
[1741040636792,0.0001697,86706.0,86705.0,0.559167]
[1741040636990,0.0001697,86706.0,86705.0,0.654807]
[1741040637189,0.230619,86723.0,86705.0,0.42414]
[1741040637504,0.235618,86724.0,86710.0,0.230651]
[1741040637505,0.230627,86720.0,86710.0,0.230651]
[1741040637661,0.230625,86721.0,86714.0,0.230643]
[1741040637845,0.005,86724.0,86723.0,0.230619]
[1741040638047,0.005,86724.0,86706.0,0.01454085]
[1741040638281,0.230621,86723.0,86707.0,0.23227522]
[1741040638499,0.005,86724.0,86714.0,0.230642]
[1741040638723,0.230624,86721.0,86712.0,0.230646]
[1741040638935,0.005,86724.0,86716.0,0.230636]
[1741040639133,0.005,86724.0,86723.0,0.230619]
[1741040640597,0.005,86724.0,86721.0,0.230624]
[1741040640797,0.005,86724.0,86706.0,0.530664]
[1741040640798,0.23062,86723.0,86706.0,0.530664]
[1741040640952,0.005,86724.0,86723.0,0.007]
[1741040641368,0.005,86724.0,86721.0,0.230624]
[1741040641592,0.005,86724.0,86723.0,0.230619]
[1741040643127,0.22814291,86724.0,86721.0,0.007]
[1741040643279,0.0036514,86738.0,86714.0,0.0956]
[1741040643475,0.230639,86716.0,86714.0,0.0956]
[1741040643718,0.230627,86720.0,86714.0,0.0956]
[1741040643921,0.00376981,86738.0,86714.0,0.0956]
[1741040643922,0.230633,86718.0,86714.0,0.0956]
[1741040644134,0.23064,86715.0,86714.0,0.0956]
[1741040644365,0.00376981,86738.0,86705.0,0.3215]
[1741040644366,0.0783,86724.0,86705.0,0.3215]
[1741040644531,0.0009537,86723.0,86702.0,0.09556]
[1741040644707,0.3,86725.0,86714.0,0.003]
[1741040645108,0.3,86725.0,86704.0,0.00161455]
[1741040645307,0.0001696,86724.0,86705.0,0.230667]
[1741040645485,0.0011233,86724.0,86708.0,0.230659]
[1741040645686,0.2317403,86724.0,86707.0,0.230661]
[1741040646001,0.230639,86716.0,86708.0,0.230657]
[1741040646200,0.0001696,86724.0,86702.0,0.09556]
[1741040646720,0.230619,86723.0,86705.0,0.007]
[1741040646916,0.230619,86723.0,86712.0,0.230648]
[1741040647120,0.0001696,86724.0,86720.0,0.230626]
[1741040647318,0.0001696,86724.0,86702.0,0.09556]
[1741040647521,0.0001696,86724.0,86723.0,0.230619]
[1741040648682,0.0001696,86724.0,86722.0,0.230621]
[1741040649033,0.0001696,86724.0,86720.0,0.237626]
[1741040649234,0.0001696,86724.0,86720.0,0.007]
[1741040649439,0.0001696,86724.0,86723.0,0.230619]
[1741040649635,0.0001696,86724.0,86712.0,0.230647]
[1741040649837,0.0001696,86724.0,86711.0,0.09556]
[1741040650037,0.0001696,86724.0,86723.0,0.007]
[1741040650484,0.0001696,86724.0,86716.0,0.230636]
[1741040650686,0.0001696,86724.0,86711.0,0.09556]
[1741040650895,0.230644,86714.0,86712.0,0.007]
[1741040651049,0.230645,86713.0,86712.0,0.007]
[1741040651255,0.230642,86715.0,86704.0,0.09552]
[1741040651460,0.230637,86717.0,86708.0,0.230658]
[1741040651658,0.23063,86719.0,86711.0,0.230649]
[1741040651863,0.230626,86721.0,86712.0,0.230647]
[1741040652224,0.2307866,86724.0,86704.0,0.09552]
[1741040652359,0.0001696,86724.0,86713.0,0.230643]
[1741040652563,0.230619,86723.0,86713.0,0.230643]
[1741040652900,0.2307856,86724.0,86716.0,0.230635]
[1741040653162,0.23062,86723.0,86714.0,0.23064]
[1741040653442,0.230614,86725.0,86716.0,0.230637]
[1741040653777,0.230622,86722.0,86714.0,0.23064]
[1741040654005,0.3234,86742.0,86707.0,0.345991]
[1741040654210,0.230592,86734.0,86724.0,0.230615]
[1741040654436,0.3,86731.0,86724.0,0.230615]
[1741040654815,0.3,86731.0,86727.0,0.230608]
[1741040655015,0.00376981,86738.0,86708.0,0.01454085]
[1741040655274,0.00376981,86738.0,86731.0,0.230595]
[1741040655618,0.00376981,86738.0,86729.0,0.230602]
[1741040655835,0.00376981,86738.0,86729.0,0.230601]
[1741040656040,0.230582,86737.0,86729.0,0.230601]
[1741040656233,0.230582,86737.0,86725.0,0.230611]
[1741040656436,0.230591,86734.0,86726.0,0.23061]
[1741040656713,0.230582,86737.0,86725.0,0.230614]
[1741040656945,0.00376981,86738.0,86729.0,0.230602]
[1741040657181,0.00376981,86738.0,86729.0,0.003]
[1741040657400,0.00376981,86738.0,86737.0,0.230582]
[1741040657602,0.00376981,86738.0,86727.0,0.09548]
[1741040657828,0.230585,86736.0,86728.0,0.230605]
[1741040658036,0.230602,86730.0,86727.0,0.09548]
[1741040658345,0.230595,86733.0,86727.0,0.09548]
[1741040658695,0.230595,86733.0,86727.0,0.08748]
[1741040658920,0.00376981,86738.0,86727.0,0.08748]
[1741040659094,0.00376981,86738.0,86731.0,0.230596]
[1741040659857,0.230586,86736.0,86728.0,0.230604]
[1741040660349,0.230586,86736.0,86729.0,0.230602]
[1741040660590,0.23434881,86738.0,86730.0,0.230599]
[1741040660775,0.00376981,86738.0,86730.0,0.230599]
[1741040660994,0.00376981,86738.0,86729.0,0.230603]
[1741040661220,0.00376981,86738.0,86727.0,0.08748]
[1741040661355,0.00376981,86738.0,86731.0,0.230596]
[1741040661976,0.230582,86737.0,86729.0,0.230601]
[1741040662179,0.230587,86736.0,86728.0,0.003]
[1741040662339,0.230587,86736.0,86728.0,0.233605]
[1741040662766,0.23059,86735.0,86728.0,0.003]
[1741040663156,0.230583,86737.0,86730.0,0.2306]
[1741040663358,0.230582,86737.0,86728.0,0.230605]
[1741040663485,0.00376981,86738.0,86727.0,0.09048]
[1741040663834,0.230596,86732.0,86727.0,0.07047999]
[1741040664037,0.230592,86733.0,86727.0,0.07047999]
[1741040664265,0.230603,86729.0,86728.0,0.004]
[1741040664663,0.230606,86728.0,86727.0,0.07047999]
[1741040665419,0.230606,86728.0,86727.0,0.07347999]
[1741040666131,0.230606,86728.0,86727.0,0.003]
[1741040666695,0.0488,86735.0,86711.0,0.0003396]
[1741040666696,0.230648,86712.0,86711.0,0.0003396]
[1741040666911,0.0752,86727.0,86711.0,0.0003396]
[1741040667114,0.3,86734.0,86721.0,0.230623]
[1741040667313,0.230612,86726.0,86711.0,0.2309896]
[1741040667527,0.230612,86726.0,86719.0,0.230628]
[1741040667949,0.230615,86725.0,86717.0,0.230633]
[1741040668174,0.230624,86722.0,86714.0,0.230641]
[1741040668391,0.230619,86723.0,86715.0,0.230638]
[1741040668607,0.230619,86723.0,86716.0,0.230637]
[1741040669021,0.230623,86722.0,86715.0,0.230639]
[1741040669222,0.230607,86728.0,86711.0,0.2309876]
[1741040669425,0.0752,86747.0,86712.0,0.00161449]
[1741040669623,0.0752,86747.0,86712.0,0.32311449]
[1741040669840,0.0752,86747.0,86732.0,0.230593]
[1741040669841,0.230572,86741.0,86732.0,0.230593]
[1741040670168,0.23056,86745.0,86734.0,0.230588]
[1741040670288,0.3,86744.0,86734.0,0.230588]
[1741040670492,0.0752,86747.0,86730.0,0.230598]
[1741040670493,0.23435081,86738.0,86730.0,0.230598]
[1741040670823,0.00376981,86738.0,86730.0,0.230598]
[1741040671035,0.00376981,86738.0,86731.0,0.230597]
[1741040671394,0.00376981,86738.0,86734.0,0.003]
[1741040671590,0.23434981,86738.0,86734.0,0.003]
[1741040671903,0.230587,86735.0,86734.0,0.003]
[1741040672931,0.00376981,86738.0,86726.0,0.0954]
[1741040673185,0.230594,86733.0,86726.0,0.0954]
[1741040673372,0.230599,86731.0,86726.0,0.0954]
[1741040673584,0.00376981,86738.0,86707.0,0.0954]
[1741040673764,0.0009537,86737.0,86700.0,0.326078]
[1741040673963,0.0009537,86737.0,86704.0,0.230667]
[1741040674163,0.0009537,86737.0,86726.0,0.003]
[1741040674164,0.230608,86727.0,86726.0,0.003]
[1741040675558,0.230648,86712.0,86705.0,0.230665]
[1741040675973,0.230643,86714.0,86708.0,0.230656]
[1741040676208,0.230643,86714.0,86707.0,0.23066]
[1741040676393,0.230631,86719.0,86700.0,0.0954]
[1741040676628,0.3,86741.0,86705.0,0.230665]
[1741040676829,0.0009537,86737.0,86713.0,0.230645]
[1741040677126,0.230609,86727.0,86721.0,0.230624]
[1741040677331,0.230616,86724.0,86718.0,0.23063]
[1741040678116,0.230611,86726.0,86720.0,0.230625]
[1741040678317,0.3,86741.0,86718.0,0.23063]
[1741040678318,0.230602,86730.0,86723.0,0.230616]
[1741040678516,0.230598,86731.0,86725.0,0.230612]
[1741040678696,0.230592,86733.0,86725.0,0.230612]
[1741040678902,0.3,86734.0,86729.0,0.230602]
[1741040679099,0.3,86734.0,86705.0,0.3215]
[1741040679324,0.3,86734.0,86726.0,0.230609]
[1741040679325,0.3,86732.0,86726.0,0.230609]
[1741040679528,0.230595,86732.0,86726.0,0.230609]
[1741040679731,0.3,86733.0,86726.0,0.230609]
[1741040680084,0.00376981,86738.0,86706.0,0.31454085]
[1741040680261,0.00376981,86738.0,86737.0,0.230582]
[1741040682161,0.00376981,86738.0,86737.0,0.237582]
[1741040683735,0.00376981,86738.0,86737.0,0.230582]
[1741040684346,0.00376981,86738.0,86737.0,0.237582]
[1741040685868,0.230535,86755.0,86740.0,0.230574]
[1741040686068,0.17778634,86758.0,86737.0,0.007]
[1741040686069,0.00039462,86758.0,86737.0,0.007]
[1741040686276,0.230559,86746.0,86740.0,0.230573]
[1741040686797,0.230557,86747.0,86740.0,0.230573]
[1741040686942,0.230558,86746.0,86740.0,0.230573]
[1741040687137,0.230546,86751.0,86740.0,0.005]
[1741040687482,0.00039462,86758.0,86740.0,0.005]
[1741040687669,0.00039462,86758.0,86728.0,0.230604]
[1741040687670,0.0752,86751.0,86717.0,0.3215]
[1741040687875,0.230566,86743.0,86740.0,0.007]
[1741040688242,0.0752,86751.0,86740.0,0.007]
[1741040688447,0.230585,86736.0,86731.0,0.09528]
[1741040688645,0.230579,86738.0,86709.0,0.427183]
[1741040688847,0.0009537,86737.0,86718.0,0.230631]
[1741040689145,0.230615,86725.0,86716.0,0.230637]
[1741040689346,0.6708,86750.0,86713.0,0.230645]
[1741040689603,0.230624,86721.0,86715.0,0.230639]
[1741040689812,0.23062,86723.0,86716.0,0.230637]
[1741040690028,0.230605,86729.0,86721.0,0.230622]
[1741040690216,0.6708,86750.0,86740.0,0.006]
[1741040690453,0.230571,86741.0,86740.0,0.006]
[1741040690870,0.230608,86728.0,86721.0,0.230623]
[1741040691084,0.67119462,86750.0,86720.0,0.0073396]
[1741040691288,0.00039462,86750.0,86749.0,0.23055]
[1741040693301,0.00039462,86750.0,86749.0,0.23355]
[1741040693864,0.00039462,86750.0,86749.0,0.23055]
[1741040694639,0.00039462,86750.0,86749.0,0.23755]
[1741040700745,0.23094162,86750.0,86749.0,0.007]
[1741040701153,0.53094162,86750.0,86749.0,0.007]
[1741040701359,0.30039462,86750.0,86749.0,0.007]
[1741040701493,0.30039462,86750.0,86749.0,0.23755]
[1741040701697,0.00039462,86750.0,86749.0,0.23755]
[1741040702394,0.23094162,86750.0,86749.0,0.007]
[1741040704009,0.25250282,86750.0,86749.0,0.007]
[1741040704655,0.02195582,86750.0,86749.0,0.007]
[1741040704856,0.25250282,86750.0,86749.0,0.007]
[1741040706113,0.87590282,86750.0,86749.0,0.0073394]
[1741040706270,0.95460282,86750.0,86749.0,0.0073394]
[1741040706477,1.11685477,86750.0,86749.0,4e-07]
[1741040706676,1.00220282,86750.0,86749.0,4e-07]
[1741040706906,1.21674367,86750.0,86749.0,4e-07]
[1741040707281,1.21674367,86750.0,86749.0,0.0030004]
[1741040707700,0.230624,86721.0,86720.0,0.0003396]
[1741040708179,0.230617,86724.0,86720.0,0.0003396]
[1741040708389,0.230624,86721.0,86720.0,0.0003396]
[1741040708801,0.230622,86722.0,86720.0,0.0003396]
[1741040709002,0.23062,86723.0,86720.0,0.00045801]
[1741040709221,0.3,86732.0,86720.0,0.00045801]
[1741040709461,0.230607,86728.0,86721.0,0.230622]
[1741040709596,0.3777,86735.0,86720.0,0.00045801]
[1741040709597,0.230624,86721.0,86720.0,0.00045801]
[1741040710406,0.230624,86721.0,86720.0,0.00545801]
[1741040710953,0.0215612,86722.0,86720.0,0.00545801]
[1741040711101,0.0215612,86722.0,86720.0,0.00045801]
[1741040711648,0.05609139,86721.0,86720.0,0.00045801]
[1741040711853,0.05609139,86721.0,86720.0,0.23108501]
[1741040712484,0.05709139,86721.0,86720.0,0.23808501]
[1741040712807,0.0225612,86721.0,86720.0,0.23808501]
[1741040714241,0.05709139,86721.0,86720.0,0.23808501]
[1741040715880,0.0225612,86721.0,86720.0,0.23808501]
[1741040716026,0.0225612,86721.0,86720.0,0.25262586]
[1741040716924,0.0225612,86721.0,86720.0,0.23808501]
[1741040717721,0.001,86721.0,86720.0,0.23808501]
[1741040718085,0.0560863,86739.0,86738.0,0.230579]
[1741040718694,0.0215612,86739.0,86738.0,0.230579]
[1741040719284,0.0215612,86739.0,86738.0,0.233579]
[1741040719702,0.0215612,86739.0,86738.0,0.230579]
[1741040720415,0.0215612,86739.0,86738.0,0.210579]
[1741040720717,0.0225612,86739.0,86738.0,0.216579]
[1741040721693,0.0215612,86739.0,86738.0,0.210579]
[1741040722214,0.0215612,86739.0,86738.0,0.217579]
[1741040722574,0.0215612,86739.0,86738.0,0.210579]
[1741040722774,0.0215612,86739.0,86738.0,0.217579]
[1741040723474,0.0215612,86739.0,86738.0,0.210579]
[1741040723675,0.0215612,86739.0,86738.0,0.217579]
[1741040725539,0.0215612,86739.0,86738.0,0.31391985]
[1741040725740,0.0215612,86739.0,86738.0,0.30691985]
[1741040725943,0.0215612,86739.0,86738.0,0.31391985]
[1741040726507,0.0215612,86739.0,86738.0,0.30691985]
[1741040726703,0.0215612,86739.0,86738.0,0.217579]
[1741040726911,0.0215612,86739.0,86738.0,0.23211985]
[1741040727266,0.0215612,86739.0,86738.0,0.217579]
[1741040727659,0.0215612,86739.0,86738.0,0.23211985]
[1741040728619,0.230505,86766.0,86739.0,0.01454085]
[1741040728812,0.230505,86766.0,86761.0,0.230515]